Workbook

Sheet 发展目标
A1: 国家、湖南省、岳阳市2022年度经济社会发展预期目标
A3: 指标名称 | B3: 单位 | C3: 国家 | D3: 湖南省 | E3: 岳阳市
A4: GDP | B4: % | C4: 5.5%左右 | D4: 6.5%以上 | E4: 7.5%以上
A5: 规模工业增加值 | B5: % | D5: 7.2% | E5: 7.5%以上
A6: 固定资产投资 | B6: % | D6: 7.5% | E6: 9%以上
A7: 社会消费品零售总额 | B7: % | D7: 7.5% | E7: 8.5%
A8: 进出口总额 | B8: % | C8: 保稳提质 | D8: 12% | E8: 30%以上
A9: 居民消费价格指数 | B9: % | C9: 3%左右 | D9: 3%左右 | E9: 3%以内
A10: 一般公共预算地方收入 | B10: % | D10: 6% | E10: 8.0%左右
A11: 居民收入 | B11: % | C11: 与经济增长基本同步 | D11: 与经济增长基本同步 | E11: 稳步增长
A12: 城镇新增就业 | B12: 万人 | D12: 70万人
A13: 城镇调查失业率 | B13: % | C13: 5.5%以内 | D13: 5.5%以内 | E13: 5.5%以内

Sheet 主要经济指标
A1: 1-9月岳阳市主要经济指标完成情况表
A3: 主要指标 | B3: 单 位 | C3: 总量 | D3: 增幅（%）
A4: 地区生产总值 | B4: 亿元 | C4: =GDP!B4 -> 3297.59 | D4: =GDP!C4 -> 5.4
A5: 第一产业 | B5: 亿元 | C5: =GDP!B19 -> 287.72 | D5: =GDP!C19 -> 4.6
A6: 第二产业 | B6: 亿元 | C6: =GDP!B20 -> 1376.06 | D6: =GDP!C20 -> 6.6
A7: 第三产业 | B7: 亿元 | C7: =GDP!B21 -> 1633.82 | D7: =GDP!C21 -> 4.5
A8: 规模以上工业增加值 | B8: 亿元 | C8: — | D8: =规模工业生产主要分类!B4 -> 8.2
A9: 规模以上服务业主营业务收入（1-8月） | B9: 亿元 | C9: =县市2!F6 -> 268.56 | D9: =县市2!H6 -> 32.4
A10: 固定资产投资 | B10: 亿元 | C10: — | D10: =固定资产投资!B5 -> 11.0
A11: 产业投资 | B11: 亿元 | C11: — | D11: =县市2!N6 -> 17.6
A12: 工业投资 | B12: 亿元 | C12: — | D12: =固定资产投资!B19 -> 24.6
A13: 房地产投资 | B13: 亿元 | C13: =商品房建设与销售!C4 -> 142.71 | D13: =商品房建设与销售!D4 -> -15.4
A14: 商品房销售面积 | B14: 万平方米 | C14: =商品房建设与销售!C7 -> 256.14 | D14: =商品房建设与销售!D7 -> -37.7
A15: 商品房销售额 | B15: 亿元 | C15: =商品房建设与销售!C9 -> 132.95 | D15: =商品房建设与销售!D9 -> -45.4
A16: 社会消费品零售总额 | B16: 亿元 | C16: =国内贸易、旅游!C5 -> 1341.80 | D16: =国内贸易、旅游!D5 -> 3.3
A17: 限上企业（单位）消费品零售额 | B17: 亿元 | C17: =[4]Sheet1!$B$59 -> 422.91 | D17: =[4]Sheet1!$C$59 -> 11.1
A18: 进出口总额 | B18: 亿元 | C18: =#REF! ->  | D18: =#REF! -> 
A19: 出口总额 | B19: 亿元 | C19: =#REF! ->  | D19: =#REF! -> 
A20: 进口总额 | B20: 亿元 | C20: =#REF! ->  | D20: =#REF! -> 
A21: 实际到位内资 | B21: 亿元 | C21: =#REF! ->  | D21: —
A22: 实际使用外商直接投资（1-8月） | B22: 万美元 | C22: 4875 | D22: 68.4
A23: 一般公共预算收入 | B23: 亿元 | C23: =财政金融!C5 -> 245.52 | D23: =财政金融!D5 -> -8.6
A24: 一般公共预算地方收入 | B24: 亿元 | C24: =财政金融!C8 -> 139.98 | D24: =财政金融!D8 -> 12.3
A25: 一般公共预算支出 | B25: 亿元 | C25: =财政金融!C14 -> 401.99 | D25: =财政金融!D14 -> 2.8
A26: 金融机构存款余额 | B26: 亿元 | C26: =财政金融!B16 -> 3722.84 | D26: =财政金融!D16 -> 14.6
A27: 住户存款余额 | B27: 亿元 | C27: =财政金融!B17 -> 2501.78 | D27: =财政金融!D17 -> 16.3
A28: 金融机构贷款余额 | B28: 亿元 | C28: =财政金融!B22 -> 3223.60 | D28: =财政金融!D22 -> 15.5
A29: 居民消费价格总指数 | B29: % | C29: — | D29: =人民生活和物价1!D5 -> 101.4
A30: 全体居民人均可支配收入 | B30: 元 | C30: =#REF! ->  | D30: =#REF! -> 
A31: 城镇居民人均可支配收入 | B31: 元 | C31: =#REF! ->  | D31: =#REF! -> 
A32: 农村居民人均可支配收入 | B32: 元 | C32: =#REF! ->  | D32: =#REF! -> 
A33: 全社会用电量 | B33: 亿千瓦时 | C33: =#REF! ->  | D33: =#REF! -> 
A34: 工业用电量 | B34: 亿千瓦时 | C34: =#REF! ->  | D34: =#REF! -> 

Sheet GDP
A1: 地区生产总值
A3: 指标 | B3: 总量（亿元） | C3: 增幅(%) | D3: 占GDP比重（%）
A4: 地区生产总值 | B4: ='[8]4306'!$D$10/10000 -> 3297.59 | C4: ='[8]4306'!$L10 -> 5.4 | D4: —
A5: 按行业分
A6: 农林牧渔业 | B6: ='[8]4306'!$D11/10000 -> 300.51 | C6: ='[8]4306'!$L11 -> 4.6 | D6: =B6/$B$4*100 -> 9.1
A7: 工业 | B7: ='[8]4306'!$D12/10000 -> 1157.32 | C7: ='[8]4306'!$L12 -> 6.4 | D7: =B7/$B$4*100 -> 35.1
A8: #制造业 | B8: ='[8]4306'!$D13/10000 -> 1072.22 | C8: ='[8]4306'!$L13 -> 7.1 | D8: =B8/$B$4*100 -> 32.5
A9: 建筑业 | B9: ='[8]4306'!$D14/10000 -> 220.64 | C9: ='[8]4306'!$L14 -> 8.0 | D9: 6.7
A10: 批发和零售业 | B10: ='[8]4306'!$D15/10000 -> 289.40 | C10: ='[8]4306'!$L15 -> 6.1 | D10: 8.8
A11: 交通运输、仓储和邮政业 | B11: ='[8]4306'!$D16/10000 -> 131.34 | C11: ='[8]4306'!$L16 -> 4.2 | D11: 4.0
A12: 住宿和餐饮业 | B12: ='[8]4306'!$D17/10000 -> 49.73 | C12: ='[8]4306'!$L17 -> 3.8 | D12: 1.5
A13: 金融业 | B13: ='[8]4306'!$D18/10000 -> 104.16 | C13: ='[8]4306'!$L18 -> 8.8 | D13: 3.2
A14: 房地产业 | B14: ='[8]4306'!$D19/10000 -> 204.78 | C14: ='[8]4306'!$L19 -> -4.1 | D14: 6.2
A15: 其他服务业 | B15: ='[8]4306'!$D20/10000 -> 839.69 | C15: ='[8]4306'!$L20 -> 5.7 | D15: 25.5
A16: #营利性服务业 | B16: ='[8]4306'!$D21/10000 -> 526.14 | C16: ='[8]4306'!$L21 -> 6.3 | D16: 16.0
A17: 非营利性服务业 | B17: ='[8]4306'!$D22/10000 -> 313.55 | C17: ='[8]4306'!$L22 -> 4.8 | D17: 9.5
A18: 按产业分
A19: 第一产业 | B19: ='[8]4306'!$D23/10000 -> 287.72 | C19: ='[8]4306'!$L23 -> 4.6 | D19: 8.7
A20: 第二产业 | B20: ='[8]4306'!$D24/10000 -> 1376.06 | C20: ='[8]4306'!$L24 -> 6.6 | D20: 41.7
A21: 第三产业 | B21: ='[8]4306'!$D25/10000 -> 1633.82 | C21: ='[8]4306'!$L25 -> 4.5 | D21: 49.5
A22: 注：本表为季报。

Sheet 农业
A1: 农业经济
A3: 指标 | B3: 单位 | C3: 总量 | D3: 增幅(%)
A4: 一、农林牧渔业总产值 | B4: 亿元 | C4: 494.41 | D4: 4.6
A5: 农业产值 | B5: 亿元 | C5: 213.95 | D5: 4.2
A6: 林业产值 | B6: 亿元 | C6: 14.36 | D6: 8.8
A7: 牧业产值 | B7: 亿元 | C7: 128.19 | D7: 3.1
A8: 渔业产值 | B8: 亿元 | C8: 108.69 | D8: 6.8
A9: 农林牧渔专业及辅助性活动产值 | B9: 亿元 | C9: 29.22 | D9: 6.8
A10: 二、农作物播种面积
A11: 蔬菜及食用菌 | B11: 万亩 | C11: 104.16 | D11: 4.9
A12: 油菜籽 | B12: 万亩 | C12: 182.06 | D12: 1.8
A13: 三、主要农产品产量
A14: 蔬菜及食用菌 | B14: 万吨 | C14: 228.91 | D14: 5.4
A15: 油菜籽 | B15: 万吨 | C15: 21.19 | D15: 6.1
A16: 茶叶 | B16: 吨 | C16: 16315.74 | D16: 0.2
A17: 水果 | B17: 吨 | C17: 466988.77 | D17: 1.5
A18: 注：本表为季报。

Sheet 规模工业生产主要分类
A1: 规模工业生产主要分类
A3: 指 标 | B3: 增幅(%)
A4: 全市规模工业增加值 | B4: =[3]Sheet1!$G$22 -> 8.2
A5: 其中：国有企业 | B5: =[3]Sheet1!G23 -> -1.0
A6: 股份制企业 | B6: =[3]Sheet1!G24 -> 8.6
A7: 外商及港、澳、台商投资企业 | B7: =[3]Sheet1!G25 -> 10.6
A8: 其他经济类型企业 | B8: =[3]Sheet1!G26 -> 9.6
A9: 其中：大中型工业 | B9: =[3]Sheet1!G27 -> 8.2
A10: 中小微型工业 | B10: =[3]Sheet1!G28 -> 5.0
A11: 其中：公有制工业 | B11: =[3]Sheet1!G29 -> 15.5
A12: 非公有制工业 | B12: =[3]Sheet1!G30 -> 6.2
A13: 其中：中省工业 | B13: =[3]Sheet1!G31 -> 17.4
A14: 地方工业 | B14: =[3]Sheet1!G32 -> 6.4
A15: 其中：高加工度工业 | B15: =[3]Sheet1!G33 -> 12.1
A16: 其中：高技术产业 | B16: =[3]Sheet1!G34 -> 30.7

Sheet 主要产业
A1: 规模工业主要行业
A3: 指 标 | B3: 增幅(%)
A4: 主要行业增加值 | B4: =[3]Sheet1!G38 -> 7.1
A5: 石化行业 | B5: =[3]Sheet1!G39 -> 9.1
A6: 造纸行业 | B6: =[3]Sheet1!G40 -> 11.2
A7: 电力行业 | B7: =[3]Sheet1!G41 -> -6.3
A8: 食品行业 | B8: =[3]Sheet1!G42 -> 3.9
A9: 机械行业 | B9: =[3]Sheet1!G43 -> 13.0
A10: 纺织行业 | B10: =[3]Sheet1!G44 -> -15.3
A11: 建材行业 | B11: =[3]Sheet1!G45 -> -6.2
A12: 有色及循环行业 | B12: =[3]Sheet1!G46 -> 17.5
A13: 医药行业 | B13: =[3]Sheet1!G47 -> 21.9
A14: 电子信息制造业 | B14: =[3]Sheet1!G48 -> 28.2

Sheet 分县市区园区工业
A1: 省级以上园区规模工业
A3: 指 标 | B3: 增幅(%)
A4: 省级及以上园区规模工业增加值 | B4: =[3]Sheet1!G52 -> 8.7
A5: 岳阳经济技术开发区 | B5: =[3]Sheet1!G53 -> 14.4
A6: 湖南岳阳绿色化工产业园 | B6: =[3]Sheet1!G54 -> 6.5
A7: 君山区工业集中区 | B7: =[3]Sheet1!G55 -> 5.8
A8: 岳阳高新技术产业园区 | B8: =[3]Sheet1!G56 -> 6.7
A9: 华容高新技术产业开发区 | B9: =[3]Sheet1!G57 -> 5.5
A10: 湘阴县工业园 | B10: =[3]Sheet1!G58 -> 8.8
A11: 平江高新技术产业园区 | B11: =[3]Sheet1!G59 -> 6.9
A12: 汨罗循环经济产业园 | B12: =[3]Sheet1!G60 -> 7.1
A13: 临湘市工业园 | B13: =[3]Sheet1!G61 -> 7.0
A14: 岳阳临港高新技术产业开发区 | B14: =[3]Sheet1!G62 -> 22.2

Sheet 规模以上工业经济效益 (hidden)
A1: 规模以上工业经济效益（1-2月）
A3: 指 标 | B3: 单位 | C3: 绝对额 | D3: 增幅(%)
A4: 企业单位数 | B4: 个 | C4: ='[5]1、B47001_2022年2月'!$D$12 -> 1850
A5: #亏损企业个数 | B5: 个 | C5: ='[5]1、B47001_2022年2月'!$E$12 -> 130 | D5: ='[5]1、B47001_2022年2月'!$G$12 -> 16.1
A6: 资产总计 | B6: 亿元 | C6: ='[5]1、B47001_2022年2月'!$W$12 -> 2161.96 | D6: ='[5]1、B47001_2022年2月'!$Y$12 -> 11.4
A7: 负债合计 | B7: 亿元 | C7: ='[5]1、B47001_2022年2月'!$Z$12 -> 999.30 | D7: ='[5]1、B47001_2022年2月'!$AB$12 -> 15.9
A8: 主营营业收入 | B8: 亿元 | C8: ='[5]1、B47001_2022年2月'!$AF$12 -> 862.63 | D8: ='[5]1、B47001_2022年2月'!$AH$12 -> 24.8
A9: 主营营业成本 | B9: 亿元 | C9: ='[5]1、B47001_2022年2月'!$AI$12 -> 707.83 | D9: ='[5]1、B47001_2022年2月'!$AK$12 -> 25.8
A10: 主营税金及附加 | B10: 亿元 | C10: ='[5]1、B47001_2022年2月'!$AL$12 -> 30.44 | D10: ='[5]1、B47001_2022年2月'!$AN$12 -> 20.8
A11: 销售费用 | B11: 亿元 | C11: ='[5]1、B47001_2022年2月'!$AO$12 -> 22.38 | D11: ='[5]1、B47001_2022年2月'!$AQ$12 -> 13.6
A12: 管理费用 | B12: 亿元 | C12: ='[5]1、B47001_2022年2月'!$AR$12 -> 33.73 | D12: ='[5]1、B47001_2022年2月'!$AT$12 -> 10.1
A13: 财务费用 | B13: 亿元 | C13: ='[5]1、B47001_2022年2月'!$AX$12 -> 10.60 | D13: ='[5]1、B47001_2022年2月'!$AZ$12 -> 28.0
A14: 利润总额 | B14: 亿元 | C14: ='[5]1、B47001_2022年2月'!$CE$12 -> 43.37 | D14: ='[5]1、B47001_2022年2月'!$CG$12 -> 35.9
A15: 应交增值税 | B15: 亿元 | C15: ='[5]1、B47001_2022年2月'!$CK$12 -> 17.59 | D15: ='[5]1、B47001_2022年2月'!$CM$12 -> 102.9
A16: 亏损企业亏损总额 | B16: 亿元 | C16: ='[5]1、B47001_2022年2月'!$CH$12 -> 4.03 | D16: ='[5]1、B47001_2022年2月'!$CJ$12 -> 175.3
A17: 平均用工人数 | B17: 万人 | C17: ='[5]1、B47001_2022年2月'!$CQ$12 -> 24.63 | D17: ='[5]1、B47001_2022年2月'!$CS$12 -> -0.3
A18: 注：规模以上工业经济效益为错月数据。

Sheet 用电量 (hidden)
A1: 用电量
A3: 指标 | B3: 1-本月 （万千瓦时） | C3: 增幅(%)
A4: 全社会用电量总计
A5: 全行业用电合计
A6: 第一产业
A7: 第二产业
A8: #工业
A9: 建筑业
A10: 第三产业
A11: #交通运输、仓储和邮政业
A12: 批发和零售业
A13: 住宿和餐饮业
A14: 金融业
A15: 房地产业
A16: 城乡居民生活用电合计
A17: 城镇居民
A18: 乡村居民

Sheet 固定资产投资
A1: 固定资产投资
A4: 指 标 | B4: 增幅（%）
A5: 全部固定资产投资 | B5: =[6]T052922_1!$E6 -> 11.0
A6: 一、按经济类型分 | B6: =[6]T052922_1!$E7 -> 
A7: 国有投资 | B7: =[6]T052922_1!$E8 -> -15.6
A8: 非国有投资 | B8: =[6]T052922_1!$E9 -> 19.5
A9: 民间投资 | B9: =[6]T052922_1!$E10 -> 16.1
A10: 二、按隶属关系分 | B10: =[6]T052922_1!$E11 -> 
A11: 中央项目 | B11: =[6]T052922_1!$E12 -> 109.9
A12: 地方项目 | B12: =[6]T052922_1!$E13 -> 8.2
A13: 三、按产业分 | B13: =[6]T052922_1!$E14 -> 
A14: 第一产业 | B14: =[6]T052922_1!$E15 -> -32.0
A15: 第二产业 | B15: =[6]T052922_1!$E16 -> 24.3
A16: 第三产业 | B16: =[6]T052922_1!$E17 -> 1.6
A17: 四、按投资方向分 | B17: =[6]T052922_1!$E18 -> 
A18: 涉农项目投资 | B18: =[6]T052922_1!$E19 -> -11.5
A19: 工业投资 | B19: =[6]T052922_1!$E20 -> 24.6
A20: 其中：本年新开工工业投资 | B20: =[6]T052922_2!$E6 -> -35.9
A21: 工业技改投资 | B21: =[6]T052922_2!$E7 -> 19.0
A22: 高新技术产业 | B22: =[6]T052922_2!$E8 -> 54.8
A23: 民生工程 | B23: =[6]T052922_2!$E11 -> -4.4
A24: 生态环境 | B24: =[6]T052922_2!$E12 -> 5.0
A25: 基础设施 | B25: =[6]T052922_2!$E13 -> 24.6
A26: 房地产开发 | B26: =[6]T052922_2!$E14 -> -15.3
A27: 五、按结构分 | B27: =[6]T052922_2!$E15 -> 
A28: 建筑工程 | B28: =[6]T052922_2!$E16 -> 3.5
A29: 安装工程 | B29: =[6]T052922_2!$E17 -> 79.1
A30: 设备工器具购置 | B30: =[6]T052922_2!$E18 -> -21.9
A31: 其他费用 | B31: =[6]T052922_2!$E19 -> 34.5
A32: 六、按投资规模分
A33: #5000万以下项目个数 | B33: -50.1
A34: 5000万以下项目投资额 | B34: -35.2
A35: #5000万以上项目个数 | B35: -3.8
A36: 5000万以上项目投资额 | B36: 18.9
A37: 亿元以上项目个数 | B37: -9.4
A38: 亿元以上项目投资额 | B38: 17.3

Sheet 固定资产投资2 (hidden)
A1: 各行业固定资产投资
A4: 指 标 | B4: 增幅（%）
A5: 农、林、牧、渔业
A6: 采矿业
A7: 制造业
A8: 电力、热力、燃气及水的生产和供应业
A9: 建筑业
A10: 交通运输、仓储和邮政业
A11: 信息传输、软件和信息技术服务业
A12: 批发和零售业
A13: 住宿和餐饮业
A14: 金融业
A15: 房地产业
A16: 租赁和商务服务业
A17: 科学研究和技术服务业
A18: 水利、环境和公共设施管理业
A19: 居民服务、修理和其他服务业
A20: 教育
A21: 卫生和社会工作
A22: 文化、体育和娱乐业
A23: 公共管理和社会组织

Sheet 商品房建设与销售
A1: 商品房建设与销售
A3: 指 标 | B3: 单位 | C3: 绝对量 | D3: 增幅（%）
A4: 本年完成投资 | B4: 亿元 | C4: ='[7]1、X40039_2022年9月'!$C5/10000 -> 142.71 | D4: ='[7]1、X40039_2022年9月'!$F5 -> -15.4
A5: 其中：住宅 | B5: 亿元 | C5: ='[7]1、X40039_2022年9月'!$C6/10000 -> 112.92 | D5: ='[7]1、X40039_2022年9月'!$F6 -> -17.5
A6: 土地购置费 | B6: 亿元 | C6: ='[7]1、X40039_2022年9月'!$C7/10000 -> 16.56 | D6: ='[7]1、X40039_2022年9月'!$F7 -> -17.7
A7: 商品房销售面积 | B7: 万平方米 | C7: ='[7]1、X40039_2022年9月'!$C8/10000 -> 256.14 | D7: ='[7]1、X40039_2022年9月'!$F8 -> -37.7
A8: 其中：住宅 | B8: 万平方米 | C8: ='[7]1、X40039_2022年9月'!$C9/10000 -> 230.03 | D8: ='[7]1、X40039_2022年9月'!$F9 -> -37.0
A9: 商品房销售额 | B9: 亿元 | C9: ='[7]1、X40039_2022年9月'!$C10/10000 -> 132.95 | D9: ='[7]1、X40039_2022年9月'!$F10 -> -45.4
A10: 其中：住宅 | B10: 亿元 | C10: ='[7]1、X40039_2022年9月'!$C11/10000 -> 118.42 | D10: ='[7]1、X40039_2022年9月'!$F11 -> -43.4
A11: 房屋施工面积 | B11: 万平方米 | C11: ='[7]1、X40039_2022年9月'!$C12/10000 -> 2631.45 | D11: ='[7]1、X40039_2022年9月'!$F12 -> -2.2
A12: 其中：住宅 | B12: 万平方米 | C12: ='[7]1、X40039_2022年9月'!$C13/10000 -> 2009.63 | D12: ='[7]1、X40039_2022年9月'!$F13 -> -2.0
A13: 新开工面积 | B13: 万平方米 | C13: ='[7]1、X40039_2022年9月'!$C14/10000 -> 216.66 | D13: ='[7]1、X40039_2022年9月'!$F14 -> -49.3
A14: 其中：住宅 | B14: 万平方米 | C14: ='[7]1、X40039_2022年9月'!$C15/10000 -> 177.56 | D14: ='[7]1、X40039_2022年9月'!$F15 -> -45.6
A15: 房屋竣工面积 | B15: 万平方米 | C15: ='[7]1、X40039_2022年9月'!$C16/10000 -> 173.68 | D15: ='[7]1、X40039_2022年9月'!$F16 -> 26.6
A16: 其中：住宅 | B16: 万平方米 | C16: ='[7]1、X40039_2022年9月'!$C17/10000 -> 135.84 | D16: ='[7]1、X40039_2022年9月'!$F17 -> 23.2
A17: 待售面积 | B17: 万平方米 | C17: ='[7]1、X40039_2022年9月'!$C22/10000 -> 90.51 | D17: ='[7]1、X40039_2022年9月'!$F22 -> 10.0
A18: 其中：住宅 | B18: 万平方米 | C18: ='[7]1、X40039_2022年9月'!$C23/10000 -> 50.24 | D18: ='[7]1、X40039_2022年9月'!$F23 -> 30.5

Sheet 国内贸易、旅游
A1: 贸易旅游
A4: 指 标 | B4: 单位 | C4: 绝对额 | D4: 增幅
A5: 1.社会消费零售总额 | B5: 亿元 | C5: =[4]Sheet1!B21/10000 -> 1341.80 | D5: =ROUND([4]Sheet1!D21,1) -> 3.3
A6: （1）按经营地分
A7: 城镇 | B7: 亿元 | C7: =[4]Sheet1!B23/10000 -> 1153.28 | D7: =ROUND([4]Sheet1!D23,1) -> 3.2
A8: 乡村 | B8: 亿元 | C8: =[4]Sheet1!B24/10000 -> 188.52 | D8: =ROUND([4]Sheet1!D24,1) -> 3.5
A9: （2）按消费形态分
A10: 商品零售 | B10: 亿元 | C10: =[4]Sheet1!B26/10000 -> 1152.52 | D10: =ROUND([4]Sheet1!D26,1) -> 3.6
A11: 餐饮收入 | B11: 亿元 | C11: =[4]Sheet1!B27/10000 -> 189.28 | D11: =ROUND([4]Sheet1!D27,1) -> 1.4
A12: 2.旅游经济
A13: 旅游总人数 | B13: 万人次 | C13: 2859.06 | D13: 2.1
A14: 入境总人数 | B14: 人次 | C14: 376 | D14: 1466.7
A15: 旅游总收入 | B15: 亿元 | C15: 301.30 | D15: -4.2
A16: 旅游创汇 | B16: 万美元 | C16: 10.40 | D16: 2500.0
A17: 注：以上部分数据由市文化旅游广电局提供。

Sheet 热点商品
A1: 限上商品零售类值
A4: 指 标 | B4: 绝对额（亿元） | C4: 增幅（%）
A5: 合计 | B5: =[4]Sheet1!$B31/10000 -> 394.08 | C5: =ROUND([4]Sheet1!$C$31,1) -> 11.1
A6: 1.粮油、食品类 | B6: =[4]Sheet1!$B33/10000 -> 50.16 | C6: =ROUND([4]Sheet1!$C33,1) -> 26.4
A7: 2.饮料类 | B7: =[4]Sheet1!$B34/10000 -> 4.63 | C7: =ROUND([4]Sheet1!$C34,1) -> 16.0
A8: 3.烟酒类 | B8: =[4]Sheet1!$B35/10000 -> 8.61 | C8: =ROUND([4]Sheet1!$C35,1) -> 18.9
A9: 4.服装、鞋帽、针纺织品类 | B9: =[4]Sheet1!$B36/10000 -> 23.24 | C9: =ROUND([4]Sheet1!$C36,1) -> 7.3
A10: 5.化妆品类 | B10: =[4]Sheet1!$B37/10000 -> 2.00 | C10: =ROUND([4]Sheet1!$C37,1) -> 7.2
A11: 6.金银珠宝类 | B11: =[4]Sheet1!$B38/10000 -> 8.05 | C11: =ROUND([4]Sheet1!$C38,1) -> 13.3
A12: 7.日用品类 | B12: =[4]Sheet1!$B39/10000 -> 16.32 | C12: =ROUND([4]Sheet1!$C39,1) -> 14.5
A13: 8.五金、电料类 | B13: =[4]Sheet1!$B40/10000 -> 5.84 | C13: =ROUND([4]Sheet1!$C40,1) -> -10.5
A14: 9.体育、娱乐用品类 | B14: =[4]Sheet1!$B41/10000 -> 2.85 | C14: =ROUND([4]Sheet1!$C41,1) -> 24.8
A15: 10.书报杂志类 | B15: =[4]Sheet1!$B42/10000 -> 0.96 | C15: =ROUND([4]Sheet1!$C42,1) -> 24.1
A16: 11.电子出版物及音像制品类 | B16: =[4]Sheet1!$B43/10000 -> 0.12 | C16: =ROUND([4]Sheet1!$C43,1) -> 31.9
A17: 12.家用电器和音像器材类 | B17: =[4]Sheet1!$B44/10000 -> 22.20 | C17: =ROUND([4]Sheet1!$C44,1) -> 11.3
A18: 13.中西药品类 | B18: =[4]Sheet1!$B45/10000 -> 18.53 | C18: =ROUND([4]Sheet1!$C45,1) -> 9.9
A19: 14.文化办公用品类 | B19: =[4]Sheet1!$B46/10000 -> 7.22 | C19: =ROUND([4]Sheet1!$C46,1) -> 8.5
A20: 15.家具类 | B20: =[4]Sheet1!$B47/10000 -> 5.35 | C20: =ROUND([4]Sheet1!$C47,1) -> 7.3
A21: 16.通讯器材类 | B21: =[4]Sheet1!$B48/10000 -> 5.18 | C21: =ROUND([4]Sheet1!$C48,1) -> 12.7
A22: 17.煤炭及制品类 | B22: =[4]Sheet1!$B49/10000 -> 0.54 | C22: =ROUND([4]Sheet1!$C49,1) -> -57.7
A23: 19.石油及制品类 | B23: =[4]Sheet1!$B50/10000 -> 91.09 | C23: =ROUND([4]Sheet1!$C50,1) -> 19.5
A24: 22.建筑及装潢材料类 | B24: =[4]Sheet1!$B51/10000 -> 12.94 | C24: =ROUND([4]Sheet1!$C51,1) -> 3.0
A25: 23.机电产品及设备类 | B25: =[4]Sheet1!$B52/10000 -> 5.46 | C25: =ROUND([4]Sheet1!$C52,1) -> 14.2
A26: 24.汽车类 | B26: =[4]Sheet1!$B53/10000 -> 96.16 | C26: =ROUND([4]Sheet1!$C53,1) -> 3.5
A27: 26.棉麻类 | B27: =[4]Sheet1!$B54/10000 -> 0.49 | C27: =ROUND([4]Sheet1!$C54,1) -> -55.6
A28: 27.其他类 | B28: =[4]Sheet1!$B55/10000 -> 6.14 | C28: =ROUND([4]Sheet1!$C55,1) -> -16.6

Sheet 规上服务业营业收入 (hidden)
A1: 规模以上服务业企业分行业营业收入（1-2月）
A4: 指 标 | B4: 绝对额（亿元） | C4: 增幅（%）
A5: 规模以上服务业营业收入
A6: 交通运输、仓储和邮政业
A7: 信息传输、软件和信息技术服务业
A8: 房地产业
A9: 租赁和商务服务业
A10: 科学研究和技术服务业
A11: 水利、环境和公共设施管理业
A12: 居民服务、修理和其他服务业
A13: 教育
A14: 卫生和社会工作
A15: 文化、体育和娱乐业
A16: 注：规模以上服务业营业收入为错月数据。

Sheet 交通运输邮电
A1: 交通运输邮政
A3: 指 标 | B3: 单位 | C3: 总量 | D3: 增幅（%）
A4: 一、交通运输情况
A5: 1、客运量总计 | B5: 万人 | C5: ='[10]9月'!$E4 -> 1212.10 | D5: ='[10]9月'!$M4 -> -48.3
A6: 全社会公路客运量 | B6: 万人 | C6: ='[10]9月'!$E5 -> 1209.00 | D6: ='[10]9月'!$M5 -> -48.4
A7: 全社会水路客运量 | B7: 万人 | C7: ='[10]9月'!$E6 -> 3.10 | D7: ——
A8: 2、旅客周转量总计 | B8: 万人公里 | C8: ='[10]9月'!$E7 -> 78019.44 | D8: ='[10]9月'!$M7 -> -44.0
A9: 全社会公路旅客周转量 | B9: 万人公里 | C9: ='[10]9月'!$E8 -> 77980.04 | D9: ='[10]9月'!$M8 -> -44.1
A10: 全社会水路旅客周转量 | B10: 万人公里 | C10: ='[10]9月'!$E9 -> 39.40 | D10: ——
A11: 3、货运量总计 | B11: 万吨 | C11: ='[10]9月'!$E10 -> 17773.56 | D11: ='[10]9月'!$M10 -> -2.3
A12: 全社会公路货运量 | B12: 万吨 | C12: ='[10]9月'!$E11 -> 10130.03 | D12: ='[10]9月'!$M11 -> -5.3
A13: 全社会水路货运量 | B13: 万吨 | C13: ='[10]9月'!$E12 -> 7643.54 | D13: ='[10]9月'!$M12 -> 2.0
A14: 4、货物周转量总计 | B14: 万吨公里 | C14: ='[10]9月'!$E13 -> 1470730.84 | D14: ='[10]9月'!$M13 -> 1.8
A15: 全社会公路货物周转量 | B15: 万吨公里 | C15: ='[10]9月'!$E14 -> 878908.29 | D15: ='[10]9月'!$M14 -> 6.7
A16: 全社会水路货物周转量 | B16: 万吨公里 | C16: ='[10]9月'!$E15 -> 591822.55 | D16: ='[10]9月'!$M15 -> -4.8
A17: 5、主要港口货物吞吐量 | B17: 万吨 | C17: ='[10]9月'!$E16 -> 10017.40 | D17: ='[10]9月'!$M16 -> 13.0
A18: 主要港口集装箱(TEU) | B18: 箱 | C18: ='[10]9月'!$E17 -> 689000.00 | D18: ='[10]9月'!$M17 -> 48.6
A19: 二、邮政快递业务情况
A20: 1、邮政业务总量 | B20: 亿元 | C20: ='[11]表1-邮政行业发展情况表-2022'!$D$8 -> 132234.90 | D20: ='[11]表1-邮政行业发展情况表-2022'!$F$8 -> 10.0
A21: 2、快递业务总量 | B21: 万件 | C21: ='[11]表1-邮政行业发展情况表-2022'!$D$16 -> 7672.05 | D21: ='[11]表1-邮政行业发展情况表-2022'!$F$16 -> 14.4
A22: 注：以上交通运输数据由市交通运输局提供，邮政业务情况由市邮政管理局提供。

Sheet 财政金融
A1: 财政金融
D3: 单位：亿元；%
A4: 指 标 | B4: 本月 | C4: 1-本月 | D4: 增幅
A5: 一般公共预算收入 | B5: =[1]Sheet2!B6/10000 -> 30.80 | C5: =[1]Sheet2!C6/10000 -> 245.52 | D5: =ROUND([1]Sheet2!$E6,1) -> -8.6
A6: 其中：税收收入 | B6: =[1]Sheet2!B7/10000 -> 24.51 | C6: =[1]Sheet2!C7/10000 -> 193.96 | D6: =ROUND([1]Sheet2!$E7,1) -> -11.7
A7: 非税收入 | B7: =[1]Sheet2!B8/10000 -> 6.29 | C7: =[1]Sheet2!C8/10000 -> 51.56 | D7: =ROUND([1]Sheet2!$E8,1) -> 5.3
A8: 一般公共预算地方收入 | B8: =[1]Sheet2!B9/10000 -> 18.95 | C8: =[1]Sheet2!C9/10000 -> 139.98 | D8: =ROUND([1]Sheet2!$E9,1) -> 12.3
A9: 其中：税收收入 | B9: =[1]Sheet2!B10/10000 -> 12.79 | C9: =[1]Sheet2!C10/10000 -> 89.71 | D9: =ROUND([1]Sheet2!$E10,1) -> 16.8
A10: #增值税 | B10: =[1]Sheet2!$B$11/10000 -> 3.81 | C10: =[1]Sheet2!$C$11/10000 -> 30.93 | D10: =[1]Sheet2!$E$11 -> 9.7
A11: 企业所得税 | B11: =[1]Sheet2!$B$12/10000 -> 0.04 | C11: =[1]Sheet2!$C$12/10000 -> 5.95 | D11: =[1]Sheet2!$E$12 -> -16.0
A12: 个人所得税 | B12: =[1]Sheet2!$B$13/10000 -> 0.49 | C12: =[1]Sheet2!$C$13/10000 -> 3.09 | D12: =[1]Sheet2!$E$13 -> 73.6
A13: “上划中央”收入 | B13: =[1]Sheet2!$B$14/10000 -> 12.46 | C13: =[1]Sheet2!$C$14/10000 -> 115.69 | D13: =[1]Sheet2!$E$14 -> -10.3
A14: 一般公共预算支出 | B14: =[1]Sheet2!$B$15/10000 -> 10.91 | C14: =[1]Sheet2!$C$15/10000 -> 401.99 | D14: =[1]Sheet2!$E$15 -> 2.8
A15: 指标 | B15: 本月余额 | C15: 年初余额 | D15: 同比增幅
A16: 金融机构本外币各项存款余额 | B16: =[2]Sheet1!$C6/10000 -> 3722.84 | C16: =[2]Sheet1!D6/10000 -> 3318.15 | D16: =[2]Sheet1!$F$6 -> 14.6
A17: 住户存款 | B17: =[2]Sheet1!$C7/10000 -> 2501.78 | C17: =[2]Sheet1!D7/10000 -> 2186.14 | D17: =ROUND([2]Sheet1!F7,1) -> 16.3
A18: 非金融企业存款 | B18: =[2]Sheet1!$C8/10000 -> 653.05 | C18: =[2]Sheet1!D8/10000 -> 556.90 | D18: =ROUND([2]Sheet1!F8,1) -> 15.9
A19: 财政性存款 | B19: =[2]Sheet1!$C9/10000 -> 59.10 | C19: =[2]Sheet1!D9/10000 -> 77.74 | D19: =ROUND([2]Sheet1!F9,1) -> -1.9
A20: 机关团体存款 | B20: =[2]Sheet1!$C10/10000 -> 474.83 | C20: =[2]Sheet1!D10/10000 -> 472.91 | D20: =ROUND([2]Sheet1!F10,1) -> 5.6
A21: 非银行业金融机构存款 | B21: =[2]Sheet1!$C11/10000 -> 32.56 | C21: =[2]Sheet1!D11/10000 -> 23.51 | D21: =ROUND([2]Sheet1!F11,1) -> 46.3
A22: 金融机构本外币各项贷款余额 | B22: =[2]Sheet1!$C12/10000 -> 3223.60 | C22: =[2]Sheet1!D12/10000 -> 2841.65 | D22: =ROUND([2]Sheet1!F12,1) -> 15.5
A23: 其中：短期贷款 | B23: =[2]Sheet1!$C13/10000 -> 873.25 | C23: =[2]Sheet1!D13/10000 -> 683.57 | D23: =ROUND([2]Sheet1!F13,1) -> 30.7
A24: 其中：中长期贷款 | B24: =[2]Sheet1!$C14/10000 -> 2251.92 | C24: =[2]Sheet1!D14/10000 -> 2086.19 | D24: =ROUND([2]Sheet1!F14,1) -> 8.9
A25: 注：财政数据由市财政局提供，金融信贷数据由市人民银行提供。

Sheet 人民生活和物价1
A1: 人民生活和物价
B3: 单位：%
A4: 指 标 | B4: 上月=100 | C4: 上年同月=100 | D4: 上年同期=100
A5: 1、居民消费价格指数（%） | B5: 100.3 | C5: 102.2 | D5: 101.4
A6: 食品烟酒类 | B6: 101.3 | C6: 106.3 | D6: 99.8
A7: 衣着类 | B7: 100.2 | C7: 100.1 | D7: 100.5
A8: 居住 | B8: 100.0 | C8: 97.5 | D8: 100.4
A9: 生活用品及服务 | B9: 100.1 | C9: 101.8 | D9: 101.0
A10: 交通和通信 | B10: 99.5 | C10: 106.4 | D10: 107.7
A11: 教育文化和娱乐 | B11: 100.0 | C11: 100.2 | D11: 101.8
A12: 医疗保健 | B12: 100.0 | C12: 100.3 | D12: 100.4
A13: 其他用品和服务 | B13: 99.7 | C13: 101.1 | D13: 101.0
A14: 2、商品零售价格总指数（%） | B14: 100.3 | C14: 104.2 | D14: 102.8
A15: 注：以上数据由国家统计局岳阳调查队提供。

Sheet 调查单位
A2: 调查单位
A4: 指标 | B4: 单位 | C4: 1-9月
C5: 总量 | D5: 增幅（%）
A6: 一、新登记市场主体 | B6: 家 | C6: =[13]Sheet1!$E3 -> 100832 | D6: =[13]Sheet1!$G3*100 -> 41.5
A7: #企业 | B7: 家 | C7: =[13]Sheet1!$E4 -> 19169 | D7: =[13]Sheet1!$G4*100 -> 80.5
A8: 个体户 | B8: 家 | C8: =[13]Sheet1!$E5 -> 81067 | D8: =[13]Sheet1!$G5*100 -> 35.3
A9: 农村合作社 | B9: 家 | C9: =[13]Sheet1!$E6 -> 596 | D9: =[13]Sheet1!$G6*100 -> -13.4
A10: 二、全市在库“四上”单位 | B10: 家 | C10: 4901 | D10: 8.4
A11: #规模以上工业 | B11: 家 | C11: 1865 | D11: 6.9
A12: 限额以上批零住餐业 | B12: 家 | C12: 1147 | D12: 13.0
A13: 规模以上服务业 | B13: 家 | C13: 1130 | D13: 14.3
A14: 资质建筑业 | B14: 家 | C14: 355 | D14: 1.7
A15: 房地产开发经营业 | B15: 家 | C15: 404 | D15: -4.5
A16: 三、本年新增“四上”单位 | B16: 家 | C16: 207 | D16: 14.4
A17: #规模以上工业 | B17: 家 | C17: 43 | D17: -24.6
A18: 限额以上批零住餐业 | B18: 家 | C18: 67 | D18: 76.3
A19: 规模以上服务业 | B19: 家 | C19: 53 | D19: 35.9
A20: 资质建筑业 | B20: 家 | C20: 19 | D20: -17.4
A21: 房地产开发经营业 | B21: 家 | C21: 13 | D21: -45.8
A22: 注：新登记市场主体数据由市市场监督管理局提供。

Sheet 县市1
A1: 2022年1—9月岳阳市各县（市）区主要经济指标（一）
A3: 县（市）区 | B3: GDP | F3: 第一产业 | J3: 第二产业 | N3: 第三产业
B4: 绝对额 （亿元） | C4: 排位 | D4: 增速 （%） | E4: 排位 | F4: 绝对额 （亿元） | G4: 排位 | H4: 增速 （%） | I4: 排位 | J4: 绝对额 （亿元） | K4: 排位 | L4: 增速 （%） | M4: 排位 | N4: 绝对额 （亿元） | O4: 排位 | P4: 增速 （%） | Q4: 排位
A5: 岳阳市 | B5: 3297.59 | C5: —— | D5: 5.4 | E5: —— | F5: 287.72 | G5: —— | H5: 4.6 | I5: —— | J5: 1376.06 | K5: —— | L5: 6.6 | M5: —— | N5: 1633.82 | O5: —— | P5: 4.5 | Q5: ——
A6: 岳阳楼区 | B6: 588.97 | C6: =RANK(B6,$B$6:$B$18) -> 1 | D6: 5.8 | E6: =RANK(D6,$D$6:$D$18) -> 4 | F6: 3.94 | G6: =RANK(F6,$F$6:$F$17) -> 11 | H6: 3.0 | I6: =RANK(H6,$H$6:$H$17) -> 11 | J6: 127.41 | K6: =RANK(J6,$J$6:$J$18) -> 5 | L6: 6.4 | M6: =RANK(L6,$L$6:$L$18) -> 6 | N6: 457.62 | O6: =RANK(N6,$N$6:$N$18) -> 1 | P6: 5.9 | Q6: =RANK(P6,$P$6:$P$18) -> 7
A7: 云溪区 | B7: 221.33 | C7: =RANK(B7,$B$6:$B$18) -> 10 | D7: 5.0 | E7: =RANK(D7,$D$6:$D$18) -> 10 | F7: 7.14 | G7: =RANK(F7,$F$6:$F$17) -> 9 | H7: 3.1 | I7: =RANK(H7,$H$6:$H$17) -> 10 | J7: 138.15 | K7: =RANK(J7,$J$6:$J$18) -> 4 | L7: 7.4 | M7: =RANK(L7,$L$6:$L$18) -> 3 | N7: 76.04 | O7: =RANK(N7,$N$6:$N$18) -> 10 | P7: 0.9 | Q7: =RANK(P7,$P$6:$P$18) -> 13
A8: 君山区 | B8: 129.92 | C8: 11 | D8: 5.1 | E8: 9 | F8: 22.27 | G8: 7 | H8: 4.3 | I8: 3 | J8: 40.38 | K8: 11 | L8: 4.0 | M8: 10 | N8: 67.28 | O8: 11 | P8: 5.9 | Q8: 7
A9: 岳阳县 | B9: 285.41 | C9: 4 | D9: 5.5 | E9: 7 | F9: 42.88 | G9: 3 | H9: 3.5 | I9: 8 | J9: 116.81 | K9: 6 | L9: 5.3 | M9: 9 | N9: 125.72 | O9: 5 | P9: 6.9 | Q9: 3
A10: 华容县 | B10: 275.50 | C10: 5 | D10: 4.9 | E10: 11 | F10: 57.49 | G10: 1 | H10: 4.7 | I10: 1 | J10: 93.13 | K10: 10 | L10: 1.5 | M10: 13 | N10: 124.87 | O10: 7 | P10: 7.1 | Q10: 2
A11: 湘阴县 | B11: 272.81 | C11: 6 | D11: 6.5 | E11: 3 | F11: 44.63 | G11: 2 | H11: 4.2 | I11: 6 | J11: 103.13 | K11: 8 | L11: 7.4 | M11: 3 | N11: 125.05 | O11: 6 | P11: 6.8 | Q11: 4
A12: 平江县 | B12: 260.43 | C12: 7 | D12: 5.6 | E12: 5 | F12: 37.66 | G12: 4 | H12: 4.2 | I12: 6 | J12: 96.42 | K12: 9 | L12: 5.4 | M12: 8 | N12: 126.35 | O12: 4 | P12: 6.7 | Q12: 5
A13: 汨罗市 | B13: 316.73 | C13: 2 | D13: 5.6 | E13: 5 | F13: 30.65 | G13: 5 | H13: 4.3 | I13: 3 | J13: 152.02 | K13: 2 | L13: 5.9 | M13: 7 | N13: 134.06 | O13: 3 | P13: 6.0 | Q13: 6
A14: 临湘市 | B14: 228.92 | C14: 9 | D14: 5.5 | E14: 7 | F14: 26.67 | G14: 6 | H14: 4.5 | I14: 2 | J14: 108.83 | K14: 7 | L14: 6.8 | M14: 5 | N14: 93.41 | O14: 9 | P14: 5.2 | Q14: 10
A15: 经济开发区 | B15: 290.07 | C15: 3 | D15: 8.2 | E15: 2 | F15: 4.03 | G15: 10 | H15: 3.2 | I15: 9 | J15: 147.48 | K15: 3 | L15: 11.1 | M15: 2 | N15: 138.56 | O15: 2 | P15: 3.8 | Q15: 12
A16: 南湖新区 | B16: 106.00 | C16: 12 | D16: 4.6 | E16: 13 | F16: 0.40 | G16: 12 | H16: 2.7 | I16: 12 | J16: 6.46 | K16: 13 | L16: 3.8 | M16: 12 | N16: 99.14 | O16: 8 | P16: 4.7 | Q16: 11
A17: 屈原管理区 | B17: 71.69 | C17: 13 | D17: 4.8 | E17: 12 | F17: 9.96 | G17: 8 | H17: 4.3 | I17: 3 | J17: 35.12 | K17: 12 | L17: 4.0 | M17: 10 | N17: 26.61 | O17: 13 | P17: 5.8 | Q17: 9
A18: 城陵矶新港区 | B18: 249.83 | C18: 8 | D18: 16.3 | E18: 1 | F18: - | G18: - | H18: - | I18: - | J18: 210.73 | K18: 1 | L18: 17.8 | M18: 1 | N18: 39.10 | O18: 12 | P18: 8.2 | Q18: 1

Sheet 县市2
A2: 2022年1—9月岳阳市各县（市）区主要经济指标（二）
B3: 农林牧渔业总产值 | F3: 规模以上服务业营业收入（1-8月） | J3: 规模工业增加值 | L3: 固定资产投资 | P3: 社会消费品零售总额 | T3: 一般公共预算地方收入 | X3: 一般公共预算地方税收收入 | AB3: 商品房销售面积 | AF3: 建筑业总产值 | AJ3: 城镇居民人均可支配收入 | AN3: 农村居民人均可支配收入 | AR3: 新增“四上”单位
N4: 产业投资
B5: 绝对额（亿元） | C5: 排位 | D5: 增幅（%） | E5: 排位 | F5: 绝对额（亿元） | G5: 排位 | H5: 增幅（%） | I5: 排位 | J5: 增幅 （%） | K5: 排位 | L5: 增幅（%） | M5: 排位 | N5: 增幅 | O5: 排位 | P5: 绝对额（亿元） | Q5: 排位 | R5: 增幅（%） | S5: 排位 | T5: 绝对额（亿元） | U5: 排位 | V5: 增幅（%） | W5: 排位 | X5: 绝对额（亿元） | Y5: 排位 | Z5: 增幅（%） | AA5: 排位 | AB5: 绝对额 （万平方米） | AC5: 排位 | AD5: 增幅（%） | AE5: 排位 | AF5: 绝对额（亿元） | AG5: 排位 | AH5: 增幅（%） | AI5: 排位 | AJ5: 绝对额 （元） | AK5: 排名 | AL5: 增速 (%) | AM5: 排名 | AN5: 绝对额 （元） | AO5: 排名 | AP5: 增速 (%) | AQ5: 排名 | AR5: 申报数（家） | AS5: 其中：工业（家）
A6: 岳阳市 | B6: 494.41 | C6: - | D6: 4.6 | E6: - | F6: 268.56 | G6: — | H6: 32.4 | I6: — | J6: 8.2 | K6: — | L6: 11.0 | M6: — | N6: =[6]T100029_1!$E6 -> 17.6 | O6: — | P6: =[4]Sheet1!$B5/10000 -> 1341.80 | Q6: — | R6: =[4]Sheet1!$C5 -> 3.3 | S6: — | T6: =[1]Sheet1!$B3/10000 -> 139.98 | U6: — | V6: =[1]Sheet1!$C3 -> 12.3 | W6: — | X6: =[1]Sheet1!$D3/10000 -> 89.71 | Y6: — | Z6: =[1]Sheet1!$E3 -> 16.8 | AA6: — | AB6: 256.14 | AC6: — | AD6: -37.7 | AE6: — | AF6: ='[12]1-9月'!$C4 -> 466.02 | AG6: — | AH6: ='[12]1-9月'!$D4 -> 9.5 | AI6: — | AJ6: =[9]Sheet1!$E6 -> 30761 | AK6: — | AL6: =[9]Sheet1!$G6 -> 5.9 | AM6: — | AN6: =[9]Sheet1!$H$6 -> 16753 | AO6: — | AP6: =[9]Sheet1!$J$6 -> 7.3 | AQ6: — | AR6: 207 | AS6: 42
A7: 岳阳楼区 | B7: 7.76 | C7: 10 | D7: 3.3 | E7: 11 | F7: 34.48 | G7: =RANK(F7,$F$7:$F$19,0) -> 3 | H7: 17.1 | I7: =RANK(H7,$H$7:$H$19,0) -> 13 | J7: 2.5 | K7: =RANK(J7,$J$7:$J$19,0) -> 12 | L7: 13.5 | M7: =RANK(L7,$L$7:$L$19,0) -> 3 | N7: =[6]T100029_1!$E7 -> 12.5 | O7: =RANK(N7,$N$7:$N$19) -> 8 | P7: =[4]Sheet1!$B6/10000 -> 393.51 | Q7: =RANK(P7,$P$7:$P$19,0) -> 1 | R7: =[4]Sheet1!$C6 -> 3.5 | S7: =RANK(R7,$R$7:$R$19,0) -> 3 | T7: =[1]Sheet1!$B11/10000 -> 8.89 | U7: =RANK(T7,$T$7:$T$19,0) -> 4 | V7: =[1]Sheet1!$C11 -> 19.8 | W7: =RANK(V7,$V$7:$V$19,0) -> 8 | X7: =[1]Sheet1!$D11/10000 -> 6.71 | Y7: =RANK(X7,$X$7:$X$19,0) -> 5 | Z7: =[1]Sheet1!$E11 -> 20.7 | AA7: =RANK(Z7,$Z$7:$Z$19,0) -> 8 | AB7: 37.03 | AC7: =RANK(AB7,$AB$7:$AB$19) -> 2 | AD7: -55.6 | AE7: =RANK(AD7,$AD$7:$AD$19) -> 9 | AF7: ='[12]1-9月'!$C5 -> 66.40 | AG7: =RANK(AF7,$AF$7:$AF$19,0) -> 3 | AH7: ='[12]1-9月'!$D5 -> 12.0 | AI7: =RANK(AH7,$AH$7:$AH$19,0) -> 9 | AJ7: =[9]Sheet1!$E7 -> 36245 | AK7: =RANK(AJ7,$AJ$7:$AJ$18,0) -> 2 | AL7: =[9]Sheet1!$G7 -> 6.0 | AM7: =RANK(AL7,$AL$7:$AL$18,0) -> 4 | AN7: — | AO7: — | AP7: — | AQ7: — | AR7: 10 | AS7: 0
A8: 云溪区 | B8: 12.32 | C8: 9 | D8: 3.4 | E8: 10 | F8: 8.84 | G8: =RANK(F8,$F$7:$F$19,0) -> 11 | H8: 17.3 | I8: =RANK(H8,$H$7:$H$19,0) -> 12 | J8: 7.4 | K8: =RANK(J8,$J$7:$J$19,0) -> 4 | L8: 50.1 | M8: =RANK(L8,$L$7:$L$19,0) -> 1 | N8: =[6]T100029_1!$E8 -> 36.9 | O8: =RANK(N8,$N$7:$N$19) -> 2 | P8: =[4]Sheet1!$B7/10000 -> 33.58 | Q8: =RANK(P8,$P$7:$P$19,0) -> 11 | R8: =[4]Sheet1!$C7 -> 2.7 | S8: 13 | T8: =[1]Sheet1!$B12/10000 -> 3.81 | U8: =RANK(T8,$T$7:$T$19,0) -> 10 | V8: =[1]Sheet1!$C12 -> 9.5 | W8: =RANK(V8,$V$7:$V$19,0) -> 12 | X8: =[1]Sheet1!$D12/10000 -> 3.12 | Y8: =RANK(X8,$X$7:$X$19,0) -> 10 | Z8: =[1]Sheet1!$E12 -> 10.3 | AA8: =RANK(Z8,$Z$7:$Z$19,0) -> 12 | AB8: 0 | AC8: 13 | AD8: -100.0 | AE8: =RANK(AD8,$AD$7:$AD$19) -> 13 | AF8: ='[12]1-9月'!$C6 -> 19.84 | AG8: =RANK(AF8,$AF$7:$AF$19,0) -> 8 | AH8: ='[12]1-9月'!$D6 -> 17.9 | AI8: =RANK(AH8,$AH$7:$AH$19,0) -> 2 | AJ8: =[9]Sheet1!$E8 -> 36759 | AK8: =RANK(AJ8,$AJ$7:$AJ$18,0) -> 1 | AL8: =[9]Sheet1!$G8 -> 5.7 | AM8: 8 | AN8: — | AO8: — | AP8: — | AQ8: — | AR8: 7 | AS8: 1
A9: 君山区 | B9: 38.55 | C9: 7 | D9: 4.7 | E9: 3 | F9: 14.56 | G9: 8 | H9: 36.7 | I9: 3 | J9: 3.3 | K9: 11 | L9: 0.7 | M9: =RANK(L9,$L$7:$L$19,0) -> 13 | N9: =[6]T100029_1!$E9 -> 5.4 | O9: =RANK(N9,$N$7:$N$19) -> 11 | P9: =[4]Sheet1!$B8/10000 -> 47.83 | Q9: 9 | R9: =[4]Sheet1!$C8 -> 3.7 | S9: 1 | T9: =[1]Sheet1!$B13/10000 -> 3.26 | U9: 11 | V9: =[1]Sheet1!$C13 -> 38.7 | W9: 2 | X9: =[1]Sheet1!$D13/10000 -> 2.35 | Y9: 11 | Z9: =[1]Sheet1!$E13 -> 46.5 | AA9: 2 | AB9: 3.26 | AC9: =RANK(AB9,$AB$7:$AB$19) -> 11 | AD9: -58.3 | AE9: 10 | AF9: ='[12]1-9月'!$C7 -> 12.66 | AG9: 10 | AH9: ='[12]1-9月'!$D7 -> 14.1 | AI9: 5 | AJ9: =[9]Sheet1!$E9 -> 35304 | AK9: 3 | AL9: =[9]Sheet1!$G9 -> 6.1 | AM9: 3 | AN9: =[9]Sheet1!$H9 -> 20860 | AO9: =RANK(AN9,$AN$7:$AN$18,0) -> 2 | AP9: =[9]Sheet1!J9 -> 7.1 | AQ9: =RANK(AP9,$AP$9:$AP$18,0) -> 7 | AR9: 4 | AS9: 1
A10: 岳阳县 | B10: 73.11 | C10: 3 | D10: 4.0 | E10: 8 | F10: 19.23 | G10: 5 | H10: 28.8 | I10: 6 | J10: 6.2 | K10: 7 | L10: 2.9 | M10: 12 | N10: =[6]T100029_1!$E10 -> 1.3 | O10: 13 | P10: =[4]Sheet1!$B9/10000 -> 114.99 | Q10: 4 | R10: =[4]Sheet1!$C9 -> 3.1 | S10: 8 | T10: =[1]Sheet1!$B20/10000 -> 6.79 | U10: 8 | V10: =[1]Sheet1!$C20 -> 15.9 | W10: 9 | X10: =[1]Sheet1!$D20/10000 -> 5.12 | Y10: 8 | Z10: =[1]Sheet1!$E20 -> 21.4 | AA10: 7 | AB10: 18.97 | AC10: 8 | AD10: -14.3 | AE10: 5 | AF10: ='[12]1-9月'!$C11 -> 15.67 | AG10: 9 | AH10: ='[12]1-9月'!$D11 -> 7.0 | AI10: 12 | AJ10: =[9]Sheet1!$E10 -> 29930 | AK10: 6 | AL10: =[9]Sheet1!$G10 -> 6.1 | AM10: 2 | AN10: =[9]Sheet1!$H10 -> 18723 | AO10: =RANK(AN10,$AN$7:$AN$18,0) -> 4 | AP10: =[9]Sheet1!J10 -> 7.5 | AQ10: 1 | AR10: 19 | AS10: 6
A11: 华容县 | B11: 97.90 | C11: 1 | D11: 5.2 | E11: 1 | F11: 17.18 | G11: 7 | H11: 30.0 | I11: 5 | J11: 4.4 | K11: 9 | L11: 3.1 | M11: 11 | N11: =[6]T100029_1!$E11 -> 24.7 | O11: 4 | P11: =[4]Sheet1!$B10/10000 -> 107.61 | Q11: 5 | R11: =[4]Sheet1!$C10 -> 2.8 | S11: 12 | T11: =[1]Sheet1!$B19/10000 -> 5.81 | U11: 9 | V11: =[1]Sheet1!$C19 -> 21.6 | W11: 6 | X11: =[1]Sheet1!$D19/10000 -> 4.29 | Y11: 9 | Z11: =[1]Sheet1!$E19 -> 27.5 | AA11: 5 | AB11: 29.73 | AC11: 4 | AD11: 6.2 | AE11: 1 | AF11: ='[12]1-9月'!$C12 -> 10.69 | AG11: 11 | AH11: ='[12]1-9月'!$D12 -> 16.8 | AI11: 3 | AJ11: =[9]Sheet1!$E11 -> 28987 | AK11: 8 | AL11: =[9]Sheet1!$G11 -> 5.9 | AM11: 5 | AN11: =[9]Sheet1!$H11 -> 18295 | AO11: 5 | AP11: =[9]Sheet1!J11 -> 7.4 | AQ11: 2 | AR11: 25 | AS11: 4
A12: 湘阴县 | B12: 76.17 | C12: 2 | D12: 4.6 | E12: 6 | F12: 11.38 | G12: 9 | H12: 39.0 | I12: 2 | J12: 8.9 | K12: 3 | L12: 12.4 | M12: 6 | N12: =[6]T100029_1!$E12 -> 32.2 | O12: 3 | P12: =[4]Sheet1!$B11/10000 -> 104.30 | Q12: 6 | R12: =[4]Sheet1!$C11 -> 3.6 | S12: 2 | T12: =[1]Sheet1!$B17/10000 -> 19.38 | U12: 1 | V12: =[1]Sheet1!$C17 -> -13.2 | W12: 13 | X12: =[1]Sheet1!$D17/10000 -> 8.01 | Y12: 3 | Z12: =[1]Sheet1!$E17 -> 20.2 | AA12: 10 | AB12: 40.25 | AC12: 1 | AD12: -9.4 | AE12: 3 | AF12: ='[12]1-9月'!$C13 -> 42.71 | AG12: 4 | AH12: ='[12]1-9月'!$D13 -> 19.1 | AI12: 1 | AJ12: =[9]Sheet1!$E12 -> 29970 | AK12: 5 | AL12: =[9]Sheet1!$G12 -> 5.9 | AM12: 6 | AN12: =[9]Sheet1!$H12 -> 19114 | AO12: 3 | AP12: =[9]Sheet1!J12 -> 7.2 | AQ12: 6 | AR12: 39 | AS12: 5
A13: 平江县 | B13: 64.35 | C13: 4 | D13: 4.6 | E13: 6 | F13: 18.79 | G13: 6 | H13: 35.6 | I13: 4 | J13: 6.7 | K13: 5 | L13: 11.6 | M13: 8 | N13: =[6]T100029_1!$E13 -> 24.1 | O13: 5 | P13: =[4]Sheet1!$B12/10000 -> 123.94 | Q13: 3 | R13: =[4]Sheet1!$C12 -> 3.1 | S13: 8 | T13: =[1]Sheet1!$B16/10000 -> 11.98 | U13: 2 | V13: =[1]Sheet1!$C16 -> 10.2 | W13: 11 | X13: =[1]Sheet1!$D16/10000 -> 8.32 | Y13: 1 | Z13: =[1]Sheet1!$E16 -> 12.2 | AA13: 11 | AB13: 30.10 | AC13: 3 | AD13: -9.5 | AE13: 4 | AF13: ='[12]1-9月'!$C14 -> 42.24 | AG13: 5 | AH13: ='[12]1-9月'!$D14 -> 11.7 | AI13: 10 | AJ13: =[9]Sheet1!$E13 -> 21447 | AK13: 10 | AL13: =[9]Sheet1!$G13 -> 5.6 | AM13: 9 | AN13: =[9]Sheet1!$H13 -> 11598 | AO13: 8 | AP13: =[9]Sheet1!J13 -> 7.3 | AQ13: 4 | AR13: 31 | AS13: 7
A14: 汨罗市 | B14: 57.17 | C14: 5 | D14: 4.7 | E14: 3 | F14: 7.35 | G14: 12 | H14: 25.6 | I14: 9 | J14: 6.4 | K14: 6 | L14: 13.4 | M14: 4 | N14: =[6]T100029_1!$E14 -> 20.5 | O14: 7 | P14: =[4]Sheet1!$B13/10000 -> 93.36 | Q14: 7 | R14: =[4]Sheet1!$C13 -> 2.9 | S14: 11 | T14: =[1]Sheet1!$B15/10000 -> 11.85 | U14: 3 | V14: =[1]Sheet1!$C15 -> 14.2 | W14: 10 | X14: =[1]Sheet1!$D15/10000 -> 8.24 | Y14: 2 | Z14: =[1]Sheet1!$E15 -> 5.1 | AA14: 13 | AB14: 28.34 | AC14: 5 | AD14: -9.1 | AE14: 2 | AF14: ='[12]1-9月'!$C15 -> 28.06 | AG14: 7 | AH14: ='[12]1-9月'!$D15 -> 12.2 | AI14: 7 | AJ14: =[9]Sheet1!$E$15 -> 29366 | AK14: 7 | AL14: =[9]Sheet1!$G15 -> 5.8 | AM14: 7 | AN14: =[9]Sheet1!$H$15 -> 18077 | AO14: 6 | AP14: =[9]Sheet1!J15 -> 7.0 | AQ14: 8 | AR14: 33 | AS14: 8
A15: 临湘市 | B15: 44.32 | C15: 6 | D15: 4.9 | E15: 2 | F15: 10.35 | G15: 10 | H15: 21.5 | I15: 10 | J15: 6.2 | K15: 7 | L15: 12.4 | M15: 6 | N15: =[6]T100029_1!$E15 -> 21.9 | O15: 6 | P15: =[4]Sheet1!$B14/10000 -> 77.79 | Q15: 8 | R15: =[4]Sheet1!$C14 -> 3.2 | S15: 7 | T15: =[1]Sheet1!$B18/10000 -> 7.66 | U15: 5 | V15: =[1]Sheet1!$C18 -> 26.3 | W15: 5 | X15: =[1]Sheet1!$D18/10000 -> 5.15 | Y15: 7 | Z15: =[1]Sheet1!$E18 -> 26.8 | AA15: 6 | AB15: 27.02 | AC15: 6 | AD15: -27.6 | AE15: 6 | AF15: ='[12]1-9月'!$C16 -> 10.69 | AG15: 11 | AH15: ='[12]1-9月'!$D16 -> 13.4 | AI15: 6 | AJ15: =[9]Sheet1!$E$16 -> 28445 | AK15: 9 | AL15: =[9]Sheet1!$G16 -> 6.2 | AM15: 1 | AN15: =[9]Sheet1!$H$16 -> 16989 | AO15: 7 | AP15: =[9]Sheet1!J16 -> 7.3 | AQ15: 5 | AR15: 19 | AS15: 5
A16: 经济技术 开发区 | B16: 5.48 | C16: 11 | D16: 3.5 | E16: 9 | F16: 44.71 | G16: 2 | H16: 19.5 | I16: 11 | J16: 14.4 | K16: 2 | L16: 13.1 | M16: 5 | N16: =[6]T100029_1!$E16 -> 9.4 | O16: 10 | P16: =[4]Sheet1!$B15/10000 -> 166.44 | Q16: 2 | R16: =[4]Sheet1!$C15 -> 3.3 | S16: 5 | T16: =[1]Sheet1!$B8/10000 -> 7.17 | U16: 6 | V16: =[1]Sheet1!$C8 -> 19.9 | W16: 7 | X16: =[1]Sheet1!$D8/10000 -> 6.86 | Y16: 4 | Z16: =[1]Sheet1!$E8 -> 20.5 | AA16: 9 | AB16: 21.64 | AC16: 7 | AD16: -60.5 | AE16: 11 | AF16: ='[12]1-9月'!$C8 -> 123.48 | AG16: 1 | AH16: ='[12]1-9月'!$D8 -> 9.2 | AI16: 11 | AJ16: — | AK16: — | AL16: — | AM16: — | AN16: — | AO16: — | AP16: — | AQ16: — | AR16: 3 | AS16: 1
A17: 南湖新区 | B17: 0.76 | C17: 12 | D17: 3.1 | E17: 12 | F17: 24.89 | G17: 4 | H17: 27.1 | I17: 7 | J17: 2.3 | K17: 13 | L17: 10.7 | M17: 9 | N17: =[6]T100029_1!$E17 -> 2.4 | O17: 12 | P17: =[4]Sheet1!$B16/10000 -> 36.11 | Q17: 10 | R17: =[4]Sheet1!$C16 -> 3.3 | S17: 5 | T17: =[1]Sheet1!$B9/10000 -> 2.03 | U17: 12 | V17: =[1]Sheet1!$C9 -> 32.6 | W17: 3 | X17: =[1]Sheet1!$D9/10000 -> 1.63 | Y17: 12 | Z17: =[1]Sheet1!$E9 -> 30.8 | AA17: 4 | AB17: 13.34 | AC17: 9 | AD17: -65.1 | AE17: 12 | AF17: ='[12]1-9月'!$C9 -> 29.11 | AG17: 6 | AH17: ='[12]1-9月'!$D9 -> 15.7 | AI17: 4 | AJ17: — | AK17: — | AL17: — | AM17: — | AN17: — | AO17: — | AP17: — | AQ17: — | AR17: 5 | AS17: 0
A18: 屈原管理区 | B18: 16.53 | C18: 8 | D18: 4.7 | E18: 3 | F18: 4.51 | G18: 13 | H18: 26.1 | I18: 8 | J18: 4.4 | K18: 9 | L18: 8.9 | M18: 10 | N18: =[6]T100029_1!$E20 -> 10.2 | O18: 9 | P18: =[4]Sheet1!$B17/10000 -> 15.81 | Q18: 13 | R18: =[4]Sheet1!$C17 -> 3.4 | S18: 4 | T18: =[1]Sheet1!$B7/10000 -> 1.35 | U18: 13 | V18: =[1]Sheet1!$C7 -> 31.0 | W18: 4 | X18: =[1]Sheet1!$D7/10000 -> 1.05 | Y18: 13 | Z18: =[1]Sheet1!$E7 -> 39.5 | AA18: 3 | AB18: 1.15 | AC18: 12 | AD18: -51.1 | AE18: 8 | AF18: ='[12]1-9月'!$C10 -> 4.71 | AG18: 13 | AH18: ='[12]1-9月'!$D10 -> 12.1 | AI18: 8 | AJ18: =[9]Sheet1!$E$14 -> 31886 | AK18: 4 | AL18: =[9]Sheet1!$G14 -> 5.5 | AM18: =RANK(AL18,$AL$7:$AL$18,0) -> 10 | AN18: =[9]Sheet1!$H$14 -> 24086 | AO18: 1 | AP18: =[9]Sheet1!J14 -> 7.4 | AQ18: =RANK(AP18,$AP$9:$AP$18,0) -> 3 | AR18: 2 | AS18: 1
A19: 城陵矶新港区 | B19: — | C19: — | D19: — | E19: — | F19: 52.28 | G19: 1 | H19: 74.3 | I19: 1 | J19: 22.2 | K19: 1 | L19: 28.7 | M19: 2 | N19: =[6]T100029_1!$E18 -> 40.9 | O19: 1 | P19: =[4]Sheet1!$B18/10000 -> 26.53 | Q19: 12 | R19: =[4]Sheet1!$C18 -> 3.0 | S19: 10 | T19: =[1]Sheet1!$B10/10000 -> 6.84 | U19: 7 | V19: =[1]Sheet1!$C10 -> 69.5 | W19: 1 | X19: =[1]Sheet1!$D10/10000 -> 5.79 | Y19: 6 | Z19: =[1]Sheet1!$E10 -> 59.8 | AA19: 1 | AB19: 5.31 | AC19: 10 | AD19: -40.3 | AE19: 7 | AF19: ='[12]1-9月'!$C$17 -> 67.41 | AG19: 2 | AH19: ='[12]1-9月'!$D17 -> -0.3 | AI19: 13 | AJ19: — | AK19: — | AL19: — | AM19: — | AN19: — | AO19: — | AP19: — | AQ19: — | AR19: 10 | AS19: 3
A20: 注：新增“四上”单位数据截止到10月22日国家局名录终审通过。
